Cogmind - Beta 15 @@@ ROGUE MODE // 2025.08.11 @ 01:26:29 Player: H3-RMN Result: Destroyed by G-47 Trooper with Particle Gun Performance ------------- Evolutions (2) 1000 Regions Visited (5) 1000 Robots Destroyed (38) 190 Value Destroyed (860) 860 Prototype IDs (12) 240 Alien Tech Used (0) 0 Bonus (33) 33 TOTAL SCORE: 3323 Bonus ------- Follower Combat Kills 33 Cogmind --------- Core Integrity 0/550 Matter 300/300 Energy 98/100 System Corruption 0% Temperature Cool (9) Movement Core (50) Location -8/Storage Parts ------- > --- POWER (2) -------- (None) > --- PROPULSION (5) --- Compact Wheel > --- UTILITY (2) ------ (None) > --- WEAPON (2) ------- (None) > --- INVENTORY (5) ---- Light Regenerative Plating Authchip [Propulsion] Splice Drone Bay (6/6) Enhanced Autogun Grenade Launcher Peak State ------------ > --- POWER ------------ Light Ion Engine > --- PROPULSION ------- Flight Unit Flight Unit Flight Unit Flight Unit > --- UTILITY ---------- Machine Analyzer System Shield > --- WEAPON ----------- Minigun Minigun > --- INVENTORY -------- Heat Sink Authchip [Propulsion] Splice Drone Bay Grenade Launcher Axe [Rating: 18] Favorites ----------- Power Backup Power I Engine Backup Power I Propulsion Flight Unit Wheel Compact Wheel Hover Unit Backup Propulsion I Flight Unit Flight Unit Utility Backup Plating I Device Improved Heat Sink Processor Machine Analyzer Hackware Hacking Suite Protection Backup Plating I Weapon Minigun Energy Gun Medium Laser Ballistic Gun Minigun Launcher Grenade Launcher Impact Weapon Heavy Flail Slashing Weapon Axe Build | -11 -10 -10 -9 -8 -8 ------- Run | Yrd Mat Min Mat Mat Sto Slots Evolved 4 | . . . 2 2 . Power 1 | . . . . 1 . Propulsion 3 | . . . 2 1 . Utility . | . . . . . . Weapon . | . . . . . . Parts Attached 33 | 2 . 6 9 10 6 Power 1 | . . . . 1 . Engine 1 | . . . . 1 . Core . | . . . . . . Reactor . | . . . . . . Propulsion 10 | . . 3 4 1 2 Treads . | . . . . . . Leg . | . . . . . . Wheel 1 | . . . . . 1 Hover 1 | . . . . . 1 Flight 8 | . . 3 4 1 . Utility 10 | . . 2 1 5 2 Device 3 | . . 1 . 1 1 Storage . | . . . . . . Processor 3 | . . . 1 2 . Hackware 2 | . . . . 2 . Protection 2 | . . 1 . . 1 Artifact . | . . . . . . Weapon 12 | 2 . 1 4 3 2 Energy Gun 1 | 1 . . . . . Energy Cannon . | . . . . . . Ballistic Gun 6 | 1 . . 3 2 . Ballistic Cannon . | . . . . . . Launcher 1 | . . 1 . . . Special Weapon . | . . . . . . Impact Weapon 2 | . . . 1 . 1 Slashing Weapon 2 | . . . . 1 1 Piercing Weapon . | . . . . . . Special Melee Weapon . | . . . . . . Unidentified Prototypes 3 | . . 1 . 1 1 Parts Lost 13 | . . . 4 6 3 Power 2 | . . . 1 1 . Propulsion 8 | . . . 2 5 1 Utility 2 | . . . 1 . 1 Weapon 1 | . . . . . 1 Highest Loss Streak 4 | . . . 4 4 1 To Critical Strikes . | . . . . . . Average Backups 4 | . . 4 4 4 5 Power . | . . . . . . Propulsion . | . . . . . . Utility 2 | . . . 2 2 3 Weapon 2 | . . 2 2 2 2 Tool/Special . | . . . . . . Unused Backups 10 | . . 4 2 1 3 Power 2 | . . 1 . 1 . Propulsion . | . . . . . . Utility 2 | . . . . . 2 Weapon 6 | . . 3 2 . 1 Tool/Special . | . . . . . . Average Slot Usage (%) 63 | . 82 99 85 53 30 Engine 5 | . 10 14 9 3 . Hover 3 | . 21 5 . . 4 Flight 16 | . . 21 33 19 . Device 1 | . . . . 2 4 Processor 5 | . . . 6 12 . Hackware 2 | . . . . 1 7 Protection 8 | . 21 28 13 . . Ballistic Gun 8 | . 14 14 14 9 . Launcher 3 | . . 14 2 . . Impact Weapon 2 | . . . 4 . 6 Slashing Weapon 3 | . . . . 5 5 Peak Build Rating 18 | 2 7 13 15 18 17 Average Rating 11 | . 6 7 13 14 11 On Entrance 6 | . 2 7 8 13 10 Naked Turns . | . . . . . . Heaviest Build 14 | 3 6 7 9 14 7 Greatest Support 16 | 3 12 12 16 16 8 Greatest Overweight (x) 4 | . . 1 . 4 1 Average Overweight (x) . | . . . . . . Largest Inventory Capacity 5 | 5 5 5 5 5 5 Average Capacity 5 | 5 5 5 5 5 5 Most Carried 5 | . 1 5 5 5 5 Average Carried 4 | . . 4 4 4 4 Final Capacity 5 | 5 5 5 5 5 5 Final Carried 5 | . 1 5 5 5 5 Class Distribution -------------------- 72% | Mutant 20% | Scavenger-Sprinter 7% | Scavenger-Mutant Dominant Class ---------------- Mutant | -10/Materials Mutant | -10/Mines Scavenger-Sprinter | -9/Materials Mutant | -8/Materials Mutant | -8/Storage Resources | -11 -10 -10 -9 -8 -8 ----------- Run | Yrd Mat Min Mat Mat Sto Matter Collected 871 | 200 . 170 115 306 80 Remotely . | . . . . . . Salvage Created 1011 | . . 106 74 588 243 Parts 92 | . . 21 16 41 14 Haulers Intercepted 4 | . . . . 2 2 Recyclers Shooed 1 | . . . . . 1 Parts Field Recycled . | . . . . . . Retrieved Matter . | . . . . . . Parts Self-Destructed . | . . . . . . Prevented . | . . . . . . Kills | -11 -10 -10 -9 -8 -8 ------- Run | Yrd Mat Min Mat Mat Sto Combat Hostiles Destroyed 28 | . . 11 6 8 3 Melee 7 | . . . . 5 2 Guns 3 | . . . . 3 . AOE 17 | . . 11 6 . . Classes Destroyed 10 | . . 3 1 5 1 Worker 1 | . . . . 1 . Builder 1 | . . 1 . . . Hauler 4 | . . . . 2 2 Mechanic 1 | . . . 1 . . Operator 2 | . . . . 2 . Watcher 1 | . . . . 1 . Swarmer 15 | . . 9 6 . . Grunt 7 | . . 2 . 5 . Sentry 5 | . . . . 3 2 Hunter 1 | . . . . . 1 Best Kill Streak 6 | . . 4 6 3 2 Combat Bots Only 6 | . . 3 6 2 2 Max Kills in Single Turn 3 | . . 3 3 1 1 Gunslinging . | . . . . . . Exploded 3 | . . 3 3 . . Melee 1 | . . . . 1 1 Uniques/NPCs Destroyed . | . . . . . . Combat | -11 -10 -10 -9 -8 -8 -------- Run | Yrd Mat Min Mat Mat Sto Hostile Shots Fired 181 | . . 9 36 66 70 Missed 67 | . . 2 16 21 28 Hits 114 | . . 7 20 45 42 Projectile 114 | . . 7 20 45 42 Critical Strikes 7 | . . . . 3 4 Damage Taken 1715 | . . 117 275 728 595 Core 659 | . . 37 60 274 288 Absorbed by Shields . | . . . . . . Regen/Repaired (Parts) 27 | . . . 27 . . Core Remaining (%) 90 | 100 . 85 85 . . Volleys Fired 35 | . . 9 4 22 . Largest 2 | . . 1 2 2 . Hottest 50 | . . 30 50 50 . Shots Fired 56 | . . 9 5 42 . Gun 44 | . . . 2 42 . Cannon . | . . . . . . Launcher 12 | . . 9 3 . . Special . | . . . . . . Kinetic 44 | . . . 2 42 . Thermal . | . . . . . . Explosive 12 | . . 9 3 . . Electromagnetic . | . . . . . . Robot Hit Streak 4 | . . 3 1 4 . Robot Miss Streak 5 | . . 1 1 5 . Penetration Max . | . . . . . . Secondary Targets . | . . . . . . Shots Hit Robots 61 | . . 5 1 42 13 Core Hits 45 | . . 15 7 19 4 Critical Kills 1 | . . . . . 1 Critical Parts Destroyed . | . . . . . . Critical Strikes 2 | . . . . 1 1 Smash 1 | . . . . . 1 Sever 1 | . . . . 1 . Melee Attacks 53 | . . . 4 28 21 Impact 13 | . . . 4 . 9 Slashing 40 | . . . . 28 12 Piercing . | . . . . . . Sneak Attacks 6 | . . . . 3 3 Combat Hostiles . | . . . . . . Follow-up Attacks . | . . . . . . Damage Inflicted 2653 | . . 586 224 1267 576 Guns 354 | . . . 17 337 . Cannons . | . . . . . . Explosions 793 | . . 586 207 . . Melee 1506 | . . . . 930 576 Ramming . | . . . . . . Kinetic 354 | . . . 17 337 . Thermal . | . . . . . . Explosive 793 | . . 586 207 . . Electromagnetic . | . . . . . . Impact 229 | . . . . . 229 Slashing 1277 | . . . . 930 347 Piercing . | . . . . . . Highest Corruption . | . . . . . . Average Corruption . | . . . . . . Corruption Purged . | . . . . . . Corruption Blocked . | . . . . . . Overload Shots . | . . . . . . Overflow Damage 160 | . . 1 . 59 100 Projectiles . | . . . . . . Explosions 1 | . . 1 . . . Melee 159 | . . . . 59 100 Knockbacks . | . . . . . . Impact . | . . . . . . Kinetic . | . . . . . . Secondary . | . . . . . . Self-Inflicted Damage 86 | . . 55 31 . . Shots 3 | . . 2 1 . . Rammed 1 | . . . . . 1 Targets Rammed 1 | . . . . . 1 Kicked . | . . . . . . Crushed . | . . . . . . Highest Temperature 23 | . . 3 10 23 5 Average Temperature 8 | . . 3 7 8 5 Received Heat Transfer 699 | . . 12 57 423 207 Siege Activations . | . . . . . . Martial Activations . | . . . . . . Shielding Activations . | . . . . . . Robots Disrupted . | . . . . . . Combat Hostiles . | . . . . . . Robots Corrupted 2 | . . . . . 2 Combat Hostiles 1 | . . . . . 1 Parts Fried . | . . . . . . Impact Corruptions 3 | . . . . . 3 Robots Melted . | . . . . . . Combat Hostiles . | . . . . . . Parts Melted 1 | . . . . 1 . Heat Transferred . | . . . . . . Parts Sabotaged . | . . . . . . Parts Stolen . | . . . . . . Parts Stripped . | . . . . . . Power Chain Reactions . | . . . . . . Alert | -11 -10 -10 -9 -8 -8 ------- Run | Yrd Mat Min Mat Mat Sto Maximum Alert Level 1 | . . 1 1 1 . Low Security (%) 72 | 100 100 73 70 53 100 Level 1 27 | . . 26 29 46 . Level 2 . | . . . . . . Level 3 . | . . . . . . Level 4 . | . . . . . . Level 5 . | . . . . . . High Security . | . . . . . . Max Security . | . . . . . . Peak Influence 275 | . 30 239 275 241 164 Initial 109 | . . 7 73 109 83 Average 141 | . 13 133 133 181 117 Influence Increases 1271 | . 30 342 307 416 176 Destroy 0b10 Robot/C 580 | . . 220 140 160 60 Destroy 0b10 Robot/NC 50 | . . 5 5 30 10 Destroy Leader 140 | . . 40 30 36 34 Allied During Kill 13 | . . 11 2 . . Successful Hack 52 | . . . 17 24 11 Select Force Hacks 30 | . 30 . . . . Disable Machine 45 | . . . . 15 30 Destroy Structure 76 | . . 51 23 1 1 Partial Spotted 90 | . . 15 30 45 . Lose Combat Pursuer 195 | . . . 60 105 30 Influence Decreases 1192 | . 10 173 236 477 296 Entered New Map 396 | . . 13 116 151 116 Time Decay 626 | . 10 160 60 246 150 Lost Part 130 | . . . 40 60 30 Lost Ally 40 | . . . 20 20 . Squads Dispatched 7 | . 2 . 1 2 2 Investigation 3 | . 1 . 1 . 1 Extermination . | . . . . . . Reinforcement 4 | . 1 . . 2 1 Assault . | . . . . . . Garrison . | . . . . . . Intercept . | . . . . . . Searches Triggered . | . . . . . . Construction Impeded . | . . . . . . Haulers Reinforced . | . . . . . . Active Scanning Responses . | . . . . . . Cargo Convoy Interrupts . | . . . . . . Stealth | -11 -10 -10 -9 -8 -8 --------- Run | Yrd Mat Min Mat Mat Sto Distress Signals 4 | . 1 . 1 1 1 Communications Jammed . | . . . . . . Distress Signals . | . . . . . . Times Spotted 75 | . 5 10 19 28 13 Peak Tracking Total 13 | . 7 3 13 6 7 Tactical Retreats 7 | . . . 2 4 1 Traps | -11 -10 -10 -9 -8 -8 ------- Run | Yrd Mat Min Mat Mat Sto Traps Triggered . | . . . . . . Indirectly . | . . . . . . Trap Hack Attempts . | . . . . . . Triggered . | . . . . . . Disarmed . | . . . . . . Reprogrammed . | . . . . . . Reused . | . . . . . . Traps Extracted . | . . . . . . Installed . | . . . . . . Triggered . | . . . . . . Machines | -11 -10 -10 -9 -8 -8 ---------- Run | Yrd Mat Min Mat Mat Sto Machines Disabled 3 | . . . . 1 2 Max in Single Turn 1 | . . . . 1 1 Garrison Access 1 | . . . . . 1 Machines Repaired . | . . . . . . Machines Dismantled . | . . . . . . Machines Sabotaged . | . . . . . . Overloaded Fab Kills . | . . . . . . Hacking | -11 -10 -10 -9 -8 -8 --------- Run | Yrd Mat Min Mat Mat Sto Machines Accessed 21 | . 2 1 5 8 5 Terminals 15 | . . . 4 7 4 Fabricators . | . . . . . . Repair Stations 2 | . 1 . 1 . . Recycling Units 1 | . 1 . . . . Scanalyzers 1 | . . . . 1 . Garrison Access 1 | . . . . . 1 Total Hacks 56 | . 4 1 18 19 14 Successful 27 | . 3 1 10 8 5 Failed 29 | . 1 . 8 11 9 Catastrophic 7 | . 1 . 3 1 2 Database Lockouts . | . . . . . . Manual 22 | . 1 . 10 4 7 Terminals 45 | . . . 16 17 12 Fabricators . | . . . . . . Repair Stations 4 | . 2 . 2 . . Recycling Units 2 | . 2 . . . . Scanalyzers 2 | . . . . 2 . Garrison Access 2 | . . . . . 2 Terminal Hacks 17 | . . 1 6 6 4 Part Schematic 2 | . . . 1 1 . Robot Schematic 2 | . . . . . 2 Robot Analysis 1 | . . . 1 . . Prototype ID Bank 5 | . . . 3 2 . Open Door 3 | . . 1 . . 2 Branch Access Points 1 | . . . . 1 . Locate Traps 1 | . . . 1 . . Hauler Manifests 1 | . . . . 1 . Registered Components 1 | . . . . 1 . Fabricator Hacks . | . . . . . . Repair Station Hacks 3 | . 1 . 2 . . Scan Component 1 | . . . 1 . . Repair 1 | . . . 1 . . Refit 1 | . 1 . . . . Recycling Unit Hacks 1 | . 1 . . . . Report Inventory 1 | . 1 . . . . Scanalyzer 2 | . . . . 2 . Insert Component 1 | . . . . 1 . Analyze 1 | . . . . 1 . Garrison Access Hacks 1 | . . . . . 1 Seal Access 1 | . . . . . 1 Unauthorized Hacks 3 | . 1 . 2 . . Terminals 2 | . . . 2 . . Botnet 1 | . . . 1 . . Disrupt 1 | . . . 1 . . Fabricators . | . . . . . . Repair Stations . | . . . . . . Recycling Units 1 | . 1 . . . . Tunnel 1 | . 1 . . . . Scanalyzers . | . . . . . . Garrison Access . | . . . . . . Data Cores Recovered 1 | . . . . 1 . Used 1 | . . . . 1 . Hacking Detections 16 | . 1 . 5 7 3 Full Trace Events 4 | . . . 1 . 3 Feedback Events . | . . . . . . Feedback Blocked . | . . . . . . Robot Schematics Acquired 2 | . . . . . 2 Robots Built . | . . . . . . Authchips . | . . . . . . Time . | . . . . . . Total Robot Build Rating . | . . . . . . Part Schematics Acquired 3 | . . . 1 2 . Parts Built . | . . . . . . Authchips . | . . . . . . Time . | . . . . . . Total Part Build Rating . | . . . . . . Parts Repaired 1 | . . . 1 . . Time 26 | . . . 26 . . Parts Recycled . | . . . . . . Recycled Matter . | . . . . . . Retrieved Matter . | . . . . . . Retrieved Components . | . . . . . . Parts Scanalyzed 1 | . . . . 1 . Part Schematics Acquired 1 | . . . . 1 . Parts Damaged . | . . . . . . Bothacking | -11 -10 -10 -9 -8 -8 ------------ Run | Yrd Mat Min Mat Mat Sto Used RIF Installer . | . . . . . . Robots Hacked . | . . . . . . Non-combat . | . . . . . . Combat . | . . . . . . Robot Hacks Applied . | . . . . . . Relay Couplers Released . | . . . . . . Fabnet Peak Effective % . | . . . . . . Robots Rewired . | . . . . . . Allies Hacked . | . . . . . . Hacks Repelled . | . . . . . . Allies | -11 -10 -10 -9 -8 -8 -------- Run | Yrd Mat Min Mat Mat Sto Total Allies 3 | . . 1 . 2 . Largest Group 1 | . . 1 1 1 . Highest-Rated Group 31 | . . 31 31 16 . Highest-Rated Ally 31 | . . 31 31 16 . Total Orders . | . . . . . . Ally Attacks 16 | . . . 3 13 . Total Damage 112 | . . . 20 92 . Kills 1 | . . . 1 . . Allies Corrupted . | . . . . . . Allies Melted . | . . . . . . Intel | -11 -10 -10 -9 -8 -8 ------- Run | Yrd Mat Min Mat Mat Sto Active Infowar (turns) 615 | . . . 86 525 4 Machine Analysis 615 | . . . 86 525 4 Robot Analysis Total 1 | . . . 1 . . Derelict Logs Recovered 3 | . . 3 . . . Drone Launches 9 | . . . . 9 . Drone Recoveries 9 | . . . . 9 . Exploration | -11 -10 -10 -9 -8 -8 ------------- Run | Yrd Mat Min Mat Mat Sto Turns Passed 1368 | 38 34 320 139 525 312 Spaces Moved 1909 | 69 46 576 207 617 394 Core 514 | 69 6 . . 215 224 Treads . | . . . . . . Legs . | . . . . . . Wheels . | . . . . . . Hover 281 | . 40 71 . . 170 Flight 1114 | . . 505 207 402 . Fastest Speed 31 | 50 50 37 31 31 50 Average Speed 45 | 50 72 42 33 43 54 Slowest Speed 250 | 50 76 120 37 250 100 Overloaded Moves . | . . . . . . Propulsion Burnouts . | . . . . . . Robots Hopped 8 | . . 4 4 . . Potential Cave-ins . | . . . . . . Cave-ins Triggered . | . . . . . . Exploration Rate (%) 39 | 4 17 91 32 45 47 Regions Visited 5 Branch Regions 2 Pre-discovered Areas 3 | . 1 2 . . . Known Exits Taken 2 | . . . 1 1 . Unknown Exits Taken 3 | 1 1 1 . . . Scrap Searched 1 | . . 1 . . . Spaces Dug 27 | . . 16 10 . 1 Terrain Destroyed 77 | . . 55 21 . 1 Melee 4 | . . . 3 . 1 Projectile . | . . . . . . AOE 73 | . . 55 18 . . Terrain Rammed . | . . . . . . Walls Destroyed . | . . . . . . Machines Disabled . | . . . . . . Actions | -11 -10 -10 -9 -8 -8 --------- Run | Yrd Mat Min Mat Mat Sto Total 2269 | 70 46 644 259 794 456 Wait 191 | . . 39 26 100 26 Move 1888 | 68 45 567 198 616 394 Hop 8 | . . 4 4 . . Pick Up 19 | . 1 9 4 5 . Fast Attach 25 | 2 . 4 5 7 7 Attach 2 | . . . 1 1 . Detach 2 | . . . . 1 1 Swap 13 | . . 2 7 4 . Drop 32 | . . 10 6 10 6 Fire 35 | . . 9 4 22 . Melee 53 | . . . 4 28 21 Ram 1 | . . . . . 1 Kick . | . . . . . . Crush . | . . . . . . Escape Stasis . | . . . . . . Rewire . | . . . . . . Trap . | . . . . . . Miscellaneous . | . . . . . . Route ------- -11/Scrapyard -10/Materials -10/Mines (discovered 2 exits: *Mat x2) -9/Materials (discovered 2 exits: *Mat x2) -8/Materials (discovered 2 exits: *Sto x2) -8/Storage History --------- Turn | Location | Event 3 | -11/Scrapyard | Discovered new exit (range 15) 39 | -11/Scrapyard | Entered Materials 64 | -10/Materials | Discovered new exit (range 13) 73 | -10/Materials | Entered Mines 90 | -10/Mines | Discovered new exit (range 10) 91 | -10/Mines | Learned location of Recycling (-8) 109 | -10/Mines | Learned 2 Materials zone layouts 129 | -10/Mines | Escorted by a lone wolf Derelict 129 | -10/Mines | Learned 4 Materials zone layouts 153 | -10/Mines | Learned location of Storage (-8) 180 | -10/Mines | Found the Drone Emporium 182 | -10/Mines | Found Prototype Device 182 | -10/Mines | Identified Splice Drone Bay 257 | -10/Mines | Discovered new exit (range 6) 324 | -10/Mines | Build established: Mutant 393 | -10/Mines | Entered Materials 393 | -9/Materials | Accompanied by 1 ally 393 | -9/Materials | Evolved 2 slots: Propulsion x2 394 | -9/Materials | Identified exit to Materials 439 | -9/Materials | Repaired Grenade Launcher 532 | -9/Materials | Entered another Materials area 532 | -8/Materials | Evolved 2 slots: Power x1, Propulsion x1 542 | -8/Materials | Identified exit to Storage 547 | -8/Materials | Lost 4 parts (1p2n1u) 876 | -8/Materials | Lost 4 parts (1p3n) 1057 | -8/Materials | Entered Storage 1061 | -8/Storage | Found Prototype Protection 1061 | -8/Storage | Identified Lgt. Regenerative Plating 1138 | -8/Storage | Core integrity fell below 50% 1319 | -8/Storage | Core integrity fell below 20% 1369 | -8/Storage | Destroyed by G-47 Trooper with Particle Gun Last Messages --------------- O-16 Technician Tier: 1 Schematic downloaded. 01277_ Connecting with Terminal... >>Schematic(D-53 Grenadier) Downloading schematic... D-53 Grenadier Tier: 3 Schematic downloaded. 01277_ ALERT: Suspicious activity at Terminal S016. Dispatching Investigation squad. 01295_ Hacking Suite destroyed. 01298_ Critical hit (Burn: +37). 01310_ Acquired Axe. 01311_ Dropped Axe. 01313_ Acquired Com. Wheel. 01314_ Acquired 20 matter. 01338_ Hvy. Flail destroyed. 01340_ U-05 Engineer builds a Wall. 01345_ Slammed into G-47 Trooper. Map ----- +----------------------------------------------------+ | | | | | | | | | | | | | ???????????????################??????????????????? | | ???????????????# #??????????????????? | | ???????????????# """"" #???????????????????? | | ??????###??????# """"" !! #??????????#????????? | | ??????#!#??????# """"" !! #####??### ##???????? | | ?????## #??????# !! # +?! ^ ????????? | | ?????#T #??????# % # #? ^ ????????? | | ??#####+##########+########### # """ ""????????? | | ??# # """ ""????????? | | ??# +%""" ""????????? | | ??# % #=""" ??????? | | ??######## #####+#########+##### """ ???????? | | ?????##### # ## ! #? ???????? | | ????## # # """ ## "" " #?##+###????????? | | ????#T + # """ ## ""! " #??? #??????????? | | ????## ### # """ ## """![" #????#??????????? | | ?????! !?# # ## " !""" #???????????????? | | ????#! !?# # """ ## "!!"" #???????????????? | | ????#! !## ^ # """ ##g"""" #???????????????? | | ????#! !## # """ ## @ #???????????????? | | ????###### # ############???????????????? | | ?????????# #+########??????????????????????????? | | ?????????# #?????????????????????????????????? | | ?????????#^ ^ #?????????????????????????????????? | | ?????????# #?????????????????????????????????? | | ?????????# #?????????????????????????????????? | | ?????????# #?????????????????????????????????? | | ?????????# #?????????????????????????????????? | | ?????????# #?????????????????????????????????? | | ?????????# ##########????????????????????????? | | ?????????# #????????????????????????? | | ?????????# #????????????????????????? | | ?######### #????????????????????????? | | ?? # ########????????????????????????? | | ?"""" # #???????????????????????????????? | | ?"! " # ]! #???????????????????????????????? | | ?" %/ + ]%] #???????????????????????????????? | | ?"/%" # ]] #???????????????????????????????? | | ?"!!" # ![ #???????????????????????????????? | | ?"""" # [%] #???????????????????????????????? | | # =[* #???????????????????????????????? | | ##+#####+# +???????????????????????????????? | | ?# #???# #???????????????????????????????? | | ?# #???# #???????????????????????????????? | +----------------------------------------------------+ Best States ------------- Heat Dissipation 41 Energy Generation 10 Energy Capacity 125 Matter Stores 300 Matter Capacity 300 Sight Range 16 Terrain Scan Density 10 Armor Coverage 160 Evasion (%) 63 Targeting Accuracy 8 Melee Accuracy 5 Offensive Hacking 10 Defensive Hacking 10 Authchip Count 1 Item Schematics ----------------- VTOL Module | -9/Materials | Hacked Minigun | -8/Materials | Scanalyzed Mni. Grenade Launcher | -8/Materials | Hacked Robot Schematics ------------------ O-16 Technician | -8/Storage | Hacked D-53 Grenadier | -8/Storage | Hacked Fabricated ------------ Nothing Repaired ---------- Grenade Launcher | 55% | -9/Materials Alien Tech Used ----------------- None Achievements -------------- None Challenges ------------ None Game ------ Seed FocalLegScanner Manual? 0 Play Time 00:27:31 Cumulative 782.6 hours Start 2025.08.11 @ 01:01:07 End 2025.08.11 @ 01:26:29 Sessions 1 Manual Loads 0 Difficulty Rogue Special Mode None Game No. 303 Rogue 299 Adventurer 4 Explorer 0 Win Type - Total 13 Types 8/1/1/1/0/1/0/0/0/1 Lore% 94 Gallery% 89 Achievement% 87 Wizard Run 0 Options --------- Layout 0 ASCII 0 Keyboard 0 Movement Numpad Keybinds 0 Fullscreen 2 Font 18/CogNarrow Map View 76x50 Zoom Use 0% Tactical HUD 1 Map Filters NONE Filters NONE Steam 1 RUN: 6606557a-4917-4539-9a17-3932c05a004b